bitfinex/quotes_BTCUSD_20240827
["timestamp","ask_amount","ask_price","bid_price","bid_amount"]
[1724795503707,0.33276182,60585.0,60584.0,0.50748224]
[1724795503953,0.33276182,60585.0,60584.0,0.34242224]
[1724795504156,0.29830517,60585.0,60584.0,0.34242224]
[1724795506169,0.29830517,60585.0,60584.0,0.50748224]
[1724795506371,0.29830517,60585.0,60584.0,0.34242224]
[1724795506709,0.0199802,60622.0,60619.0,0.00285762]
[1724795506710,0.4066,60621.0,60619.0,0.00285762]
[1724795506910,0.4066,60621.0,60619.0,1e-08]
[1724795507117,0.49489,60620.0,60619.0,1e-08]
[1724795507319,0.49489,60620.0,60619.0,0.15996546]
[1724795507520,0.49489,60620.0,60619.0,0.25996546]
[1724795507939,0.49489,60620.0,60619.0,0.42492946]
[1724795508370,0.49489,60620.0,60619.0,0.25996546]
[1724795508791,0.49489,60620.0,60619.0,0.42492946]
[1724795509277,0.49489,60620.0,60619.0,1.27785846]
[1724795509906,0.49489,60620.0,60619.0,1.60778746]
[1724795510076,0.49489,60620.0,60619.0,1.27785846]
[1724795510297,0.49489,60620.0,60619.0,2.08601759]
[1724795511293,0.49489,60620.0,60619.0,2.39273059]
[1724795511472,0.49489,60620.0,60619.0,2.08601759]
[1724795511890,0.5017704,60620.0,60619.0,1.73308859]
[1724795512092,0.5017704,60620.0,60619.0,1.69877677]
[1724795512749,0.5017704,60620.0,60619.0,1.69877676]
[1724795512952,0.5017704,60620.0,60619.0,1.74948904]
[1724795513511,0.5017704,60620.0,60619.0,1.41956004]
[1724795513826,0.5017704,60620.0,60619.0,2.14551004]
[1724795514039,0.46153611,60620.0,60619.0,2.14551004]
[1724795514413,0.46153611,60620.0,60619.0,1.81558104]
[1724795515090,0.46153611,60620.0,60619.0,2.14551004]
[1724795515826,0.45867883,60620.0,60619.0,2.14551004]
[1724795516416,0.45867883,60620.0,60619.0,2.47543904]
[1724795516622,0.45867883,60620.0,60619.0,2.14551004]
[1724795517899,0.45867883,60620.0,60619.0,1.76486876]
[1724795518545,0.45867883,60620.0,60619.0,2.09479776]
[1724795519600,0.45867883,60620.0,60619.0,2.14551004]
[1724795520005,0.4386383,60620.0,60619.0,2.80536804]
[1724795520224,0.4386383,60620.0,60619.0,2.51243744]
[1724795521051,0.4386383,60620.0,60619.0,2.13179616]
[1724795521406,0.4386383,60620.0,60619.0,2.09479776]
[1724795521838,0.4386383,60620.0,60619.0,1.76486876]
[1724795522039,0.3663383,60620.0,60619.0,2.09479776]
[1724795522238,0.3663383,60620.0,60619.0,1.76486876]
[1724795522449,0.3663383,60620.0,60619.0,1.26997576]
[1724795522649,0.3663383,60620.0,60619.0,1.43493976]
[1724795522922,0.3663383,60620.0,60619.0,1.26997576]
[1724795523093,0.3663383,60620.0,60619.0,1.76486876]
[1724795523254,0.3663383,60620.0,60619.0,2.09479776]
[1724795523911,0.3663383,60620.0,60619.0,1.76486876]
[1724795524256,0.9445383,60620.0,60608.0,1.1769628]
[1724795524470,0.3982,60617.0,60584.0,0.5008987]
[1724795524709,0.3594579,60616.0,60603.0,0.002]
[1724795524910,0.3594579,60616.0,60604.0,0.00329876]
[1724795525181,0.3655203,60616.0,60607.0,0.5]
[1724795525388,0.3655203,60616.0,60599.0,0.5]
[1724795525627,0.3655203,60616.0,60615.0,0.164975]
[1724795525754,0.3655203,60616.0,60615.0,0.65489145]
[1724795526321,0.3655203,60616.0,60610.0,0.002]
[1724795526525,0.3655203,60616.0,60608.0,0.002]
[1724795526655,0.3655203,60616.0,60604.0,0.002]
[1724795526868,0.3655203,60616.0,60597.0,0.47989634]
[1724795527079,0.3655203,60616.0,60604.0,0.002]
[1724795527080,0.54766545,60615.0,60604.0,0.002]
[1724795527292,0.3594579,60614.0,60593.0,0.47989634]
[1724795527700,0.34736545,60613.0,60594.0,0.47989634]
[1724795527948,0.3594579,60612.0,60595.0,0.47989634]
[1724795528205,0.54526545,60611.0,60595.0,0.066128]
[1724795528397,0.51942335,60610.0,60598.0,0.47989634]
[1724795528606,0.51942335,60610.0,60595.0,0.22609345]
[1724795528607,0.3594579,60610.0,60595.0,0.22609345]
[1724795528951,0.3853,60608.0,60584.0,0.0008987]
[1724795529154,0.70832335,60607.0,60590.0,0.47989634]
[1724795529364,0.3853,60606.0,60592.0,0.47989634]
[1724795529566,0.3594579,60605.0,60593.0,0.00329972]
[1724795529771,0.15996545,60604.0,60591.0,0.066135]
[1724795529970,0.3594579,60603.0,60591.0,0.066135]
[1724795530171,0.3948,60602.0,60584.0,0.0008987]
[1724795530421,0.51942335,60601.0,60584.0,0.0008987]
[1724795530814,0.5786,60600.0,60584.0,0.0008987]
[1724795531012,0.3948,60598.0,60584.0,0.0008987]
[1724795531186,0.3594579,60597.0,60584.0,0.0008987]
[1724795531394,0.3594579,60597.0,60570.0,0.330191]
[1724795531395,0.3948,60594.0,60574.0,0.47989634]
[1724795531595,0.3948,60591.0,60574.0,0.47989634]
[1724795531816,0.3948,60589.0,60567.0,0.066154]
[1724795531999,0.3948,60587.0,60575.0,0.47989634]
[1724795532251,0.3594579,60586.0,60562.0,0.723]
[1724795532465,0.3594579,60586.0,60563.0,0.15996545]
[1724795532787,0.15996545,60585.0,60560.0,0.47989634]
[1724795533000,0.1807,60583.0,60560.0,0.63986179]
[1724795533224,0.3868,60581.0,60560.0,0.15996545]
[1724795533400,0.3868,60579.0,60559.0,0.066155]
[1724795533636,0.51942335,60578.0,60552.0,0.723]
[1724795533862,0.3868,60577.0,60558.0,0.47989634]
[1724795534080,0.51942335,60576.0,60553.0,0.15996545]
[1724795534360,0.51942335,60576.0,60541.0,0.42091831]
[1724795534361,0.51942335,60576.0,60523.0,0.008998]
[1724795534362,0.15996545,60556.0,60523.0,0.008998]
[1724795534526,0.5675,60554.0,60545.0,0.47989634]
[1724795534740,0.5675,60554.0,60523.0,0.008998]
[1724795534741,0.7462579,60553.0,60523.0,0.008998]
[1724795534970,0.7462579,60553.0,60530.0,0.47989634]
[1724795535197,0.7462579,60553.0,60523.0,0.075197]
[1724795535198,0.15996545,60548.0,60531.0,0.47989634]
[1724795535437,0.15996545,60533.0,60523.0,0.008998]
[1724795535687,0.5675,60546.0,60518.0,0.066205]
[1724795535688,0.15996545,60529.0,60518.0,0.47989634]
[1724795535905,0.15996545,60529.0,60493.0,0.47989634]
[1724795535906,0.005,60525.0,60493.0,0.47989634]
[1724795536116,0.1807,60516.0,60509.0,0.47989634]
[1724795536348,0.00413073,60525.0,60493.0,0.54612634]
[1724795536349,0.5662,60509.0,60493.0,0.47989634]
[1724795536565,0.3767,60506.0,60493.0,0.47989634]
[1724795536788,0.3767,60506.0,60482.0,0.00814]
[1724795536789,0.15996545,60502.0,60488.0,0.01112633]
[1724795537044,0.3594579,60505.0,60482.0,0.00814]
[1724795537045,0.1895,60498.0,60482.0,0.00814]
[1724795537264,0.1895,60498.0,60482.0,0.01945118]
[1724795537265,0.89612335,60497.0,60482.0,0.01945118]
[1724795537497,0.89612335,60497.0,60482.0,0.00814]
[1724795537498,0.3899,60496.0,60482.0,0.00814]
[1724795537730,0.3899,60494.0,60482.0,0.00814]
[1724795537944,0.51942335,60493.0,60482.0,0.00814]
[1724795538177,0.15996545,60483.0,60479.0,0.000819]
[1724795538426,0.15996545,60483.0,60417.0,0.05]
[1724795538427,0.005,60478.0,60455.0,0.066276]
[1724795538672,0.005,60478.0,60468.0,0.47989634]
[1724795538673,0.5791,60470.0,60468.0,0.47989634]
[1724795538898,0.3594579,60469.0,60445.0,0.066288]
[1724795539126,0.3594579,60469.0,60439.0,0.330911]
[1724795539127,0.3889,60468.0,60456.0,0.47989634]
[1724795539343,0.15996545,60466.0,60444.0,0.165441]
[1724795539563,0.15996545,60461.0,60446.0,0.165435]
[1724795539796,0.3877,60458.0,60442.0,0.01132139]
[1724795540024,0.5831,60450.0,60440.0,0.066295]
[1724795540239,0.54766545,60444.0,60433.0,0.000823]
[1724795540463,0.90712335,60444.0,60433.0,0.000823]
[1724795540748,0.90712335,60444.0,60433.0,0.00360782]
[1724795540950,0.7471579,60444.0,60433.0,0.00360785]
[1724795541180,0.7471579,60444.0,60433.0,0.000823]
[1724795541401,0.7471579,60444.0,60435.0,0.330929]
[1724795541620,0.7471579,60444.0,60443.0,0.1716397]
[1724795541850,0.3594579,60444.0,60443.0,0.0061947]
[1724795542125,0.3594579,60444.0,60443.0,0.5025297]
[1724795542338,0.3594579,60444.0,60443.0,1.63164015]
[1724795542570,0.3594579,60444.0,60443.0,1.99713446]
[1724795542571,0.01089976,60444.0,60443.0,1.99713446]
[1724795542794,0.5711,60474.0,60473.0,0.165363]
[1724795543020,0.330739,60474.0,60473.0,0.25996545]
[1724795543252,0.5711,60504.0,60473.0,0.25996545]
[1724795543253,0.5711,60504.0,60494.0,0.165304]
[1724795543478,0.5711,60504.0,60473.0,0.61369145]
[1724795543479,0.5711,60504.0,60495.0,0.26274063]
[1724795543696,2.7e-05,60503.0,60497.0,0.330592]
[1724795543913,2.7e-05,60503.0,60502.0,0.49585]
[1724795544129,0.330594,60503.0,60502.0,1.08638245]
[1724795544562,0.330594,60503.0,60502.0,1.52961862]
[1724795545198,0.330594,60503.0,60502.0,2.75261862]
[1724795545659,0.330594,60503.0,60502.0,3.05977162]
[1724795546158,0.331594,60503.0,60502.0,2.76561862]
[1724795546357,0.331594,60503.0,60502.0,3.07276662]
[1724795546558,0.330594,60503.0,60502.0,2.75261862]
[1724795546778,0.330594,60503.0,60502.0,3.35395562]
[1724795546972,0.04798963,60546.0,60517.0,0.42023617]
[1724795547206,0.34216545,60545.0,60519.0,0.330474]
[1724795547410,0.34216545,60545.0,60517.0,0.42023617]
[1724795547411,0.83777545,60545.0,60520.0,0.59043345]
[1724795547546,0.83777545,60545.0,60520.0,0.32616745]
[1724795547749,0.83777545,60545.0,60520.0,0.49140045]
[1724795547948,0.83777545,60545.0,60521.0,0.47989634]
[1724795548153,0.83777545,60545.0,60522.0,0.25996545]
[1724795549054,0.00089981,60531.0,60522.0,0.25996545]
[1724795549273,0.49561,60530.0,60522.0,0.25996545]
[1724795549935,0.49561,60530.0,60522.0,0.25496545]
[1724795550084,0.49561,60530.0,60522.0,0.26796545]
[1724795550298,0.49561,60530.0,60523.0,0.165225]
[1724795550454,0.49561,60530.0,60524.0,0.1]
[1724795551590,0.49561,60530.0,60522.0,0.15496545]
[1724795551591,0.49561,60530.0,60523.0,0.1]
[1724795551791,0.49661,60530.0,60523.0,0.1]
[1724795552467,0.49761,60530.0,60524.0,0.014]
[1724795552595,0.49661,60530.0,60524.0,0.014]
[1724795552986,0.49761,60530.0,60524.0,0.014]
[1724795553186,0.49661,60530.0,60523.0,0.1]
[1724795553761,0.49761,60530.0,60524.0,0.014]
[1724795554943,0.49561,60530.0,60523.0,0.1]
[1724795555144,0.49661,60530.0,60523.0,0.113]
[1724795555351,0.49661,60530.0,60523.0,0.11577056]
[1724795555524,0.49661,60530.0,60523.0,0.10277056]
[1724795555868,0.49661,60530.0,60524.0,0.013]
[1724795555869,0.49761,60530.0,60524.0,0.013]
[1724795556085,0.49561,60530.0,60523.0,0.1]
[1724795556869,0.49661,60530.0,60523.0,0.113]
[1724795557245,0.49661,60530.0,60524.0,0.16273545]
[1724795557473,0.49661,60530.0,60526.0,0.330433]
[1724795557673,0.49661,60530.0,60527.0,0.42517945]
[1724795557881,0.49661,60530.0,60528.0,0.1]
[1724795558067,0.49561,60530.0,60528.0,0.25996545]
[1724795558670,0.49661,60530.0,60528.0,0.25996545]
[1724795559054,0.49761,60530.0,60528.0,0.27296545]
[1724795559516,0.49761,60530.0,60529.0,0.49038545]
[1724795559758,0.49761,60530.0,60529.0,1.10901545]
[1724795560014,0.49761,60530.0,60529.0,1.43943545]
[1724795560219,0.49761,60530.0,60529.0,1.98333545]
[1724795560500,0.49761,60530.0,60529.0,1.43943545]
[1724795561382,0.00037,60548.0,60547.0,0.42022907]
[1724795561604,0.00037,60548.0,60547.0,0.52022907]
[1724795561799,0.49585,60548.0,60547.0,0.52022907]
[1724795562636,0.49585,60548.0,60547.0,0.1]
[1724795562842,0.49585,60548.0,60546.0,0.102767]
[1724795563014,0.49685,60548.0,60547.0,0.013]
[1724795564217,0.49585,60548.0,60546.0,0.002767]
[1724795564416,0.49585,60548.0,60547.0,0.15996545]
[1724795564762,0.49585,60548.0,60547.0,0.42512545]
[1724795565164,0.49585,60548.0,60547.0,1.08576745]
[1724795565705,0.49585,60548.0,60547.0,1.76758845]
[1724795565918,0.4005,60562.0,60547.0,1.49596545]
[1724795565919,0.34928988,60562.0,60547.0,1.49596545]
[1724795566137,0.1886,60574.0,60554.0,0.330282]
[1724795566400,0.49537,60566.0,60558.0,0.330259]
[1724795566633,0.49537,60566.0,60559.0,0.43301733]
[1724795566849,0.49537,60566.0,60561.0,0.165121]
[1724795567060,0.49537,60566.0,60562.0,0.1]
[1724795567302,0.49537,60566.0,60560.0,0.1]
[1724795567514,0.49537,60566.0,60560.0,0.265124]
[1724795567744,0.49537,60566.0,60560.0,0.1]
[1724795568188,0.49537,60566.0,60558.0,0.014]
[1724795568843,0.49537,60566.0,60557.0,0.165132]
[1724795569060,0.49537,60566.0,60561.0,0.014]
[1724795569274,0.49537,60566.0,60558.0,0.1]
[1724795569491,0.49537,60566.0,60558.0,0.265129]
[1724795569708,0.49537,60566.0,60558.0,0.279129]
[1724795569925,0.48757,60566.0,60558.0,0.1]
[1724795570158,0.48757,60566.0,60561.0,0.014]
[1724795570385,0.48757,60566.0,60558.0,0.1]
[1724795570603,0.48757,60566.0,60558.0,0.265129]
[1724795570823,0.48757,60566.0,60558.0,0.114]
[1724795571958,0.48757,60566.0,60558.0,0.1]
[1724795572401,0.48757,60566.0,60561.0,0.014]
[1724795572675,0.48757,60566.0,60558.0,0.1]
[1724795573124,0.48757,60566.0,60558.0,0.114]
[1724795573349,0.48757,60566.0,60560.0,0.000818]
[1724795573573,0.48757,60566.0,60561.0,0.014]
[1724795574457,0.48757,60566.0,60560.0,0.000818]
[1724795576169,0.48757,60566.0,60558.0,0.12]
[1724795576408,0.48757,60566.0,60560.0,0.014]
[1724795577176,0.48757,60566.0,60558.0,0.12]
[1724795577369,0.48757,60566.0,60558.0,0.134]
[1724795577797,0.48757,60566.0,60558.0,0.29913]
[1724795578002,0.414,60565.0,60559.0,0.066163]
[1724795578161,0.48757,60564.0,60559.0,0.066163]
[1724795579325,0.48757,60564.0,60560.0,0.014]
[1724795579548,0.48757,60564.0,60559.0,0.1]
[1724795579682,0.48757,60564.0,60558.0,0.02]
[1724795579882,0.48757,60564.0,60559.0,0.014]
[1724795580084,0.48757,60564.0,60559.0,0.1]
[1724795580527,0.48757,60564.0,60560.0,0.014]
[1724795580799,0.48757,60564.0,60559.0,0.1]
[1724795581000,0.15996545,60563.0,60558.0,0.02]
[1724795581328,0.48757,60562.0,60558.0,0.02]
[1724795581545,0.1825,60560.0,60558.0,0.02]
[1724795581910,0.48757,60559.0,60558.0,0.02]
[1724795582118,1.06153545,60559.0,60558.0,0.02]
[1724795583876,0.005,60557.0,60529.0,0.47989634]
[1724795584075,0.15996545,60554.0,60545.0,0.47989634]
[1724795584284,0.49169869,60556.0,60529.0,0.47989634]
[1724795584285,1.03623545,60553.0,60529.0,0.47989634]
[1724795584491,0.15943898,60548.0,60529.0,0.01146963]
[1724795584715,0.15943898,60548.0,60528.0,0.066203]
[1724795584716,0.48757,60547.0,60528.0,0.066203]
[1724795584868,0.15996545,60546.0,60528.0,0.066203]
[1724795585063,0.48757,60545.0,60522.0,0.000818]
[1724795585331,0.15996545,60544.0,60522.0,0.000818]
[1724795585535,0.48757,60543.0,60522.0,0.000818]
[1724795585753,0.15996545,60542.0,60522.0,0.000818]
[1724795586035,0.5829,60540.0,60523.0,0.066204]
[1724795586237,0.64753545,60539.0,60523.0,0.066204]
[1724795586388,0.64753545,60539.0,60529.0,0.014]
[1724795586622,0.64733672,60539.0,60529.0,0.014]
[1724795586821,0.64733672,60539.0,60523.0,0.066204]
[1724795587572,0.64733672,60539.0,60522.0,0.01210269]
[1724795587573,0.15996545,60530.0,60522.0,0.01210269]
[1724795587832,0.87627,60529.0,60522.0,0.000818]
[1724795588042,0.15996545,60528.0,60522.0,0.000818]
[1724795588253,0.68687,60527.0,60522.0,0.000818]
[1724795588476,0.15996545,60526.0,60522.0,0.000818]
[1724795588698,0.48757,60525.0,60522.0,0.000818]
[1724795588915,0.53796545,60524.0,60522.0,0.000818]
[1724795589192,0.53796545,60524.0,60506.0,0.066222]
[1724795589193,0.378,60522.0,60506.0,0.066222]
[1724795589384,0.76974452,60523.0,60481.0,0.47989634]
[1724795589385,0.005,60483.0,60481.0,0.47989634]
[1724795589535,0.005,60482.0,60481.0,0.47989634]
[1724795589692,0.005,60482.0,60463.0,0.47989634]
[1724795589693,0.005,60476.0,60463.0,0.47989634]
[1724795589892,0.005,60476.0,60419.0,0.42022907]
[1724795589893,0.005,60469.0,60428.0,0.5]
[1724795590092,0.48757,60468.0,60441.0,0.066291]
[1724795590296,0.48757,60468.0,60428.0,0.5]
[1724795590297,0.1993,60466.0,60434.0,0.0082]
[1724795590521,0.54296545,60462.0,60434.0,0.0082]
[1724795590724,1.02553545,60462.0,60442.0,0.01135583]
[1724795591136,1.02553545,60462.0,60461.0,0.0222]
[1724795591802,1.02553545,60462.0,60431.0,0.330951]
[1724795591803,0.005,60434.0,60401.0,0.47989634]
[1724795592006,0.3926,60422.0,60401.0,0.47989634]
[1724795592214,0.88017,60422.0,60401.0,0.47989634]
[1724795592639,0.88017,60422.0,60382.0,0.47989634]
[1724795592845,0.4161,60421.0,60384.0,0.01153174]
[1724795593075,0.4161,60421.0,60382.0,0.47989634]
[1724795593076,0.15996545,60403.0,60382.0,0.47989634]
[1724795593283,0.15996545,60403.0,60366.0,0.47989634]
[1724795593284,0.15996545,60399.0,60383.0,0.47989634]
[1724795593512,0.005,60391.0,60366.0,0.47989634]
[1724795593714,0.4161,60390.0,60366.0,0.47989634]
[1724795593914,0.4161,60390.0,60359.0,0.066379]
[1724795594115,0.15996545,60388.0,60354.0,0.3824]
[1724795594390,0.16410548,60388.0,60355.0,0.15996545]
[1724795594562,0.16410548,60388.0,60354.0,0.3824]
[1724795594563,0.4161,60367.0,60358.0,0.066381]
[1724795594904,0.4211,60367.0,60366.0,0.009]
[1724795595116,0.005,60366.0,60336.0,0.47989634]
[1724795595323,0.005,60364.0,60337.0,0.01975073]
[1724795595512,0.005,60364.0,60354.0,0.011]
[1724795595735,0.15996545,60361.0,60354.0,0.011]
[1724795596118,0.48757,60360.0,60354.0,0.011]
[1724795596352,0.15996545,60359.0,60354.0,0.011]
[1724795596767,0.90047,60358.0,60343.0,0.0265942]
[1724795596973,0.15996545,60357.0,60337.0,0.00819]
[1724795597396,0.48757,60356.0,60338.0,0.331465]
[1724795597602,0.48757,60356.0,60345.0,0.165713]
[1724795597603,0.15996545,60355.0,60345.0,0.165713]
[1724795597812,0.48757,60356.0,60345.0,0.165713]
[1724795597813,0.48757,60356.0,60346.0,0.00279927]
[1724795598030,0.48757,60356.0,60355.0,0.165686]
[1724795598248,0.48757,60356.0,60355.0,1.210058]
[1724795598447,0.48757,60356.0,60355.0,1.70139545]
[1724795598663,0.48757,60356.0,60355.0,2.03276745]
[1724795598894,0.48757,60356.0,60355.0,2.60772334]
[1724795599101,0.47989634,60382.0,60355.0,1.38996134]
[1724795599310,0.47989634,60382.0,60374.0,0.331264]
[1724795599519,0.4129,60391.0,60374.0,0.331264]
[1724795599520,0.49695,60381.0,60380.0,0.496852]
[1724795599940,0.49695,60381.0,60380.0,0.75681745]
[1724795600142,0.49695,60381.0,60380.0,1.11105245]
[1724795600348,0.49695,60381.0,60380.0,1.44228745]
[1724795600967,0.48466709,60381.0,60380.0,2.25775025]
[1724795601175,0.4701621,60381.0,60380.0,2.58898525]
[1724795601405,0.393,60416.0,60394.0,0.5]
[1724795601614,0.393,60427.0,60414.0,0.165524]
[1724795601804,0.393,60427.0,60405.0,0.42022907]
[1724795601805,0.331126,60414.0,60413.0,0.331054]
[1724795602035,0.331126,60414.0,60413.0,0.850635]
[1724795602251,0.331126,60414.0,60413.0,1.871689]
[1724795602465,0.331126,60414.0,60413.0,0.978527]
[1724795603142,0.331126,60414.0,60413.0,1.640635]
[1724795603351,0.331126,60414.0,60413.0,2.40533895]
[1724795603785,0.29374373,60414.0,60413.0,2.59383895]
[1724795604007,0.3857,60446.0,60421.0,0.5]
[1724795604223,0.3857,60446.0,60429.0,0.42022907]
[1724795604488,0.49642,60435.0,60430.0,1.20392545]
[1724795604710,0.49642,60435.0,60432.0,0.165472]
[1724795604927,0.49642,60435.0,60433.0,0.1]
[1724795605813,0.49642,60435.0,60434.0,1.15637345]
[1724795606020,0.49642,60435.0,60434.0,1.96779745]
[1724795606237,0.49642,60435.0,60434.0,2.29873645]
[1724795606450,0.1649988,60435.0,60434.0,2.29873645]
[1724795606673,0.1954,60464.0,60443.0,0.5]
[1724795606910,0.3857,60467.0,60451.0,0.330846]
[1724795607102,0.3857,60467.0,60447.0,0.42022907]
[1724795607103,0.49625,60463.0,60456.0,0.165408]
[1724795607289,0.49625,60463.0,60457.0,0.28296545]
[1724795607509,0.49625,60463.0,60458.0,0.330807]
[1724795607797,0.49625,60463.0,60461.0,0.165395]
[1724795608030,0.47905291,60463.0,60462.0,0.25996545]
[1724795608969,0.47905291,60463.0,60462.0,0.75614445]
[1724795609147,0.47905291,60463.0,60462.0,0.77914445]
[1724795609347,0.47905291,60463.0,60462.0,0.28296545]
[1724795610103,0.47905291,60463.0,60462.0,0.29696545]
[1724795610307,0.47905291,60463.0,60462.0,0.28296545]
[1724795610705,0.47905291,60463.0,60462.0,0.29696545]
[1724795610924,0.43940176,60463.0,60462.0,0.79314445]
[1724795611128,0.34660716,60463.0,60462.0,1.95471645]
[1724795611558,0.34660716,60463.0,60462.0,2.21710845]
[1724795611963,0.47989634,60499.0,60480.0,0.330683]
[1724795612177,0.47989634,60499.0,60481.0,0.15996545]
[1724795612389,0.5779,60504.0,60482.0,0.023]
[1724795612645,0.49596,60495.0,60484.0,0.330664]
[1724795612849,0.49596,60495.0,60485.0,0.18296545]
[1724795612981,0.49596,60495.0,60485.0,0.51362045]
[1724795613333,0.49596,60495.0,60485.0,0.18296545]
[1724795613555,0.49596,60495.0,60490.0,0.165315]
[1724795613691,0.49596,60495.0,60487.0,0.330649]
[1724795613893,0.49596,60495.0,60488.0,0.353643]
[1724795614140,0.49596,60495.0,60488.0,0.023]
[1724795614345,0.49596,60495.0,60488.0,0.123]
[1724795614547,0.49596,60495.0,60488.0,0.28832]
[1724795614679,0.49596,60495.0,60488.0,0.123]
[1724795615501,0.49596,60495.0,60489.0,0.00277602]
[1724795615720,0.49596,60495.0,60489.0,0.10277602]
[1724795615920,0.49596,60495.0,60490.0,0.1]
[1724795616162,0.49596,60495.0,60490.0,0.114]
[1724795616364,0.49596,60495.0,60490.0,0.1]
[1724795617197,0.49596,60495.0,60490.0,0.014]
[1724795617548,0.49596,60495.0,60491.0,0.066237]
[1724795617745,0.49596,60495.0,60492.0,0.00277605]
[1724795618022,0.49596,60495.0,60493.0,0.15996545]
[1724795618160,0.49596,60495.0,60494.0,0.265305]
[1724795618376,0.43301203,60495.0,60494.0,1.10949245]
[1724795618581,0.42128728,60495.0,60494.0,1.10949245]
[1724795618786,0.42128728,60495.0,60494.0,0.77888145]
[1724795618999,0.42128728,60495.0,60494.0,1.10949245]
[1724795619200,0.42128728,60495.0,60494.0,1.44010345]
[1724795619687,0.25497002,60495.0,60494.0,2.33960345]
[1724795619853,0.009031,60524.0,60511.0,0.165256]
[1724795620206,0.009031,60524.0,60513.0,0.330505]
[1724795620428,0.009031,60524.0,60514.0,0.00277122]
[1724795620429,0.49572,60523.0,60514.0,0.00277122]
[1724795620634,0.49572,60523.0,60512.0,0.023]
[1724795620838,0.49572,60523.0,60515.0,0.165245]
[1724795621073,0.49572,60523.0,60514.0,0.3305]
[1724795621294,0.49572,60523.0,60515.0,0.02577171]
[1724795621739,0.49572,60523.0,60516.0,0.165245]
[1724795621973,0.33869719,60523.0,60522.0,0.495687]
[1724795622210,0.33129821,60523.0,60522.0,0.75565245]
[1724795622423,0.33129821,60523.0,60522.0,0.77865245]
[1724795622852,0.24908731,60523.0,60522.0,0.77865245]
[1724795623283,0.15413373,60523.0,60522.0,0.77865245]
[1724795623764,0.00492095,60523.0,60522.0,1.10911045]
[1724795624193,0.00492095,60523.0,60522.0,1.12311045]
[1724795624617,0.1809,60539.0,60527.0,0.42022907]
[1724795624862,0.1809,60539.0,60529.0,0.165208]
[1724795625081,0.4956,60538.0,60531.0,0.165203]
[1724795625294,0.4956,60538.0,60532.0,0.1]
[1724795625706,0.4956,60538.0,60534.0,0.165195]
[1724795625935,0.4956,60538.0,60534.0,0.15996545]
[1724795626210,0.4956,60538.0,60537.0,0.165188]
[1724795626436,0.4956,60538.0,60537.0,0.518564]
[1724795626979,0.4956,60538.0,60537.0,0.67852945]
[1724795627211,0.4956,60538.0,60537.0,1.00890545]
[1724795627466,0.47841193,60538.0,60537.0,0.77852945]
[1724795628089,0.47841193,60538.0,60537.0,0.44815345]
[1724795628310,0.47841193,60538.0,60537.0,0.77852945]
[1724795628547,0.47841193,60538.0,60537.0,0.79252945]
[1724795628795,0.18615248,60538.0,60537.0,0.79252945]
[1724795629033,0.18615248,60538.0,60537.0,0.44815345]
[1724795629276,0.18615248,60538.0,60537.0,0.79252945]
[1724795629531,0.09275547,60538.0,60537.0,1.10890545]
[1724795629767,0.05739777,60538.0,60537.0,1.10890545]
[1724795630001,0.0300496,60538.0,60537.0,1.12290545]
[1724795630229,0.0195308,60538.0,60537.0,1.10890545]
[1724795630468,0.0195308,60538.0,60537.0,1.12290545]
[1724795630696,0.0195308,60538.0,60537.0,0.79252945]
[1724795630916,0.194831,60556.0,60537.0,0.29696545]
[1724795631118,0.49556,60538.0,60537.0,0.302188]
[1724795631346,0.194831,60556.0,60537.0,0.55722907]
[1724795631559,0.06519,60538.0,60537.0,1.05279307]
[1724795631756,0.06519,60538.0,60537.0,0.632564]
[1724795631961,0.06519,60538.0,60537.0,0.137]
[1724795632164,0.06519,60538.0,60537.0,0.288188]
[1724795632625,0.06519,60538.0,60537.0,0.302188]
[1724795632821,0.06519,60538.0,60537.0,0.123]
[1724795632992,0.06519,60538.0,60537.0,0.70841707]
[1724795633202,0.06519,60538.0,60537.0,0.55722907]
[1724795633736,0.06519,60538.0,60537.0,0.69941707]
[1724795633984,0.06519,60538.0,60537.0,0.53504707]
[1724795634397,0.06519,60538.0,60537.0,0.86020052]
[1724795634608,0.06519,60538.0,60537.0,0.74975175]
[1724795634820,0.06519,60538.0,60537.0,0.43504707]
[1724795635026,0.64579,60538.0,60537.0,0.014818]
[1724795635236,0.64579,60538.0,60515.0,0.42022907]
[1724795635237,0.80575545,60538.0,60515.0,0.42022907]
[1724795635442,0.15996545,60537.0,60515.0,0.42022907]
[1724795635650,0.44999,60536.0,60513.0,0.5]
[1724795635868,0.44999,60536.0,60506.0,0.0539059]
[1724795635869,0.5704,60533.0,60506.0,0.47989634]
[1724795636083,0.3873,60531.0,60506.0,0.47989634]
[1724795636306,0.3873,60529.0,60506.0,0.47989634]
[1724795636518,0.3873,60529.0,60504.0,0.42022907]
[1724795636519,0.22515545,60528.0,60504.0,0.42022907]
[1724795636928,0.1854,60526.0,60513.0,0.013]
[1724795637129,0.3904,60524.0,60513.0,0.013]
[1724795637340,0.33910101,60592.0,60504.0,0.00890049]
[1724795637341,0.005,60521.0,60504.0,0.00890049]
[1724795637558,0.005,60521.0,60491.0,0.066237]
[1724795637559,0.3954,60517.0,60491.0,0.066237]
[1724795637771,0.3904,60515.0,60491.0,0.066237]
[1724795637976,0.005,60517.0,60491.0,0.066237]
[1724795637977,0.3904,60513.0,60491.0,0.066237]
[1724795638194,0.63838696,60512.0,60491.0,0.066237]
[1724795638405,0.005,60507.0,60490.0,0.00908026]
[1724795638630,0.4041,60505.0,60490.0,0.00908026]
[1724795638904,0.4041,60503.0,60481.0,0.54614334]
[1724795639120,0.4041,60503.0,60482.0,0.00890231]
[1724795639121,0.22515545,60502.0,60482.0,0.00890231]
[1724795639387,0.22515545,60502.0,60476.0,0.00819]
[1724795639388,0.4041,60492.0,60476.0,0.00819]
[1724795639633,0.22928855,60491.0,60478.0,0.00983232]
[1724795639892,0.47989634,60482.0,60478.0,0.000819]
[1724795640132,0.08372886,60490.0,60462.0,0.44022907]
[1724795640133,0.1989,60474.0,60463.0,0.47989634]